fUST/lending_fUST_20240924
["ID","MTS","AMOUNT","RATE_DAILY","PERIOD"]
[339007349,1727117473305,-500.0,0.00033424,30]
[339007350,1727117473314,-505.07706924,0.00033424,30]
[339007351,1727117473324,-500.0,0.00033424,120]
[339007352,1727117473333,-500.0,0.00033424,30]
[339007353,1727117473342,-278.52607798,0.00033424,30]
[339007354,1727117473355,-619.54610593,0.00033424,30]
[339007355,1727117473364,-500.0,0.00033424,30]
[339007356,1727117473374,-3744.07,0.00033424,30]
[339007357,1727117473384,-500.0,0.00033424,30]
[339007358,1727117473393,-500.0,0.00033424,30]
[339007359,1727117473403,-868.86,0.00033424,30]
[339007360,1727117473412,-500.0,0.00033424,30]
[339007361,1727117473421,-500.0,0.00033424,30]
[339007362,1727117473431,-500.0,0.00033424,30]
[339007363,1727117473440,-500.0,0.00033424,30]
[339007364,1727117473449,-500.0,0.00033424,30]
[339007365,1727117473458,-500.0,0.00033424,30]
[339007366,1727117473467,-500.0,0.00033424,30]
[339007367,1727117473477,-500.0,0.00033424,30]
[339007368,1727117473486,-500.0,0.00033424,30]
[339007369,1727117473496,-500.0,0.00033424,30]
[339007370,1727117473505,-500.0,0.00033424,10]
[339007371,1727117473514,-500.0,0.00033424,30]
[339007372,1727117473524,-500.0,0.00033424,30]
[339007373,1727117473533,-500.0,0.00033424,30]
[339007374,1727117473542,-500.0,0.00033424,30]
[339007375,1727117473551,-500.0,0.00033424,30]
[339007376,1727117473560,-500.0,0.00033424,30]
[339007377,1727117473569,-500.0,0.00033424,30]
[339007378,1727117473579,-500.0,0.00033424,30]
[339007379,1727117473588,-500.0,0.00033424,30]
[339007380,1727117473599,-216.35278142,0.00033424,30]
[339007381,1727117473609,-500.0,0.00033424,30]
[339007382,1727117473619,-500.0,0.00033424,30]
[339007383,1727117473628,-500.0,0.00033424,30]
[339007384,1727117473638,-500.0,0.00033424,30]
[339007385,1727117473649,-500.0,0.00033424,30]
[339007386,1727117473659,-500.0,0.00033424,30]
[339007387,1727117473669,-500.0,0.00033424,30]
[339007388,1727117473678,-500.0,0.00033424,30]
[339007389,1727117473687,-500.0,0.00033424,30]
[339007390,1727117473697,-500.0,0.00033424,2]
[339007391,1727117473706,-517.82,0.00033424,30]
[339007392,1727117473715,-500.0,0.00033424,30]
[339007393,1727117473725,-500.0,0.00033424,30]
[339007394,1727117473734,-1913.51,0.00033424,30]
[339007395,1727117473744,-1028.69,0.00033424,2]
[339007396,1727117473753,-709.92,0.00033424,30]
[339007397,1727117473763,-500.0,0.00033424,30]
[339007398,1727117473772,-500.0,0.00033424,30]
[339007399,1727117473782,-500.0,0.00033424,30]
[339007400,1727117473792,-500.0,0.00033424,30]
[339007401,1727117473801,-500.0,0.00033424,30]
[339007402,1727117473811,-500.0,0.00033424,30]
[339007403,1727117473820,-500.0,0.00033424,30]
[339007404,1727117473830,-500.0,0.00033424,30]
[339007405,1727117473840,-500.0,0.00033424,30]
[339007406,1727117473850,-500.0,0.00033424,30]
[339007407,1727117473860,-500.0,0.00033424,30]
[339007408,1727117473869,-500.0,0.00033424,30]
[339007409,1727117473878,-500.0,0.00033424,30]
[339007410,1727117473888,-500.0,0.00033424,30]
[339007411,1727117473898,-500.0,0.00033424,30]
[339007412,1727117473908,-500.0,0.00033424,30]
[339007413,1727117473918,-500.0,0.00033424,30]
[339007414,1727117473928,-165.58666057,0.00033424,30]
[339007415,1727117473938,-179.84612297,0.00033424,30]
[339007416,1727117473947,-510.3024606,0.00033424,30]
[339007417,1727117473956,-500.0,0.00033424,30]
[339007418,1727117473965,-503.24263152,0.00033424,30]
[339007419,1727117473975,-553.71491783,0.00033424,30]
[339007420,1727117473984,-500.0,0.00033424,30]
[339007421,1727117473993,-96.12647513,0.00033424,30]
[339007422,1727117474177,-422.8343388,0.00029237,2]
[339007423,1727117474218,-77.1656612,0.00029237,2]
[339007424,1727117474227,-500.0,0.00029237,2]
[339007425,1727117474237,-123.55302359,0.00033424,30]
[339007426,1727117474252,-280.32050128,0.00033424,30]
[339007427,1727117474262,-500.0,0.00033424,30]
[339007428,1727117474271,-500.0,0.00033424,30]
[339007429,1727117474280,-531.0,0.00033424,30]
[339007430,1727117474290,-647.96026338,0.00033424,30]
[339007431,1727117474299,-279.21334824,0.00033424,30]
[339007432,1727117474308,-500.0,0.00033424,30]
[339007433,1727117474317,-502.62406265,0.00033424,30]
[339007434,1727117474326,-788.3,0.00033424,30]
[339007435,1727117474335,-510.64778559,0.00033424,30]
[339007436,1727117474345,-500.0,0.00033424,30]
[339007437,1727117474355,-500.0,0.00033424,30]
[339007438,1727117474364,-500.0,0.00033424,30]
[339007439,1727117474374,-529.1,0.00033424,30]
[339007440,1727117474384,-500.0,0.00033424,30]
[339007441,1727117474393,-620.43,0.00033424,30]
[339007442,1727117474402,-505.46145573,0.00033424,30]
[339007443,1727117474412,-500.0,0.00033424,30]
[339007444,1727117474421,-1117.38,0.00033424,30]
[339007445,1727117474431,-322.23557413,0.00033424,30]
[339007446,1727117474440,-500.0,0.00033424,30]
[339007447,1727117474450,-500.0,0.00033424,30]
[339007448,1727117474459,-500.0,0.00033424,30]
[339007449,1727117474468,-500.0,0.00033424,30]
[339007450,1727117474478,-500.0,0.00033424,30]
[339007451,1727117474487,-565.06,0.00033424,30]
[339007452,1727117474497,-500.0,0.00033424,30]
[339007453,1727117474506,-500.0,0.00033424,30]
[339007454,1727117474515,-500.0,0.00033424,30]
[339007455,1727117474524,-500.0,0.00033424,30]
[339007456,1727117474534,-500.0,0.00033424,30]
[339007457,1727117474543,-500.0,0.00033424,30]
[339007458,1727117474552,-658.29,0.00033424,30]
[339007459,1727117474562,-500.0,0.00033424,30]
[339007460,1727117474571,-500.0,0.00033424,30]
[339007461,1727117474581,-500.0,0.00033424,30]
[339007462,1727117474589,-500.0,0.00033424,30]
[339007463,1727117474599,-500.0,0.00033424,30]
[339007464,1727117474608,-500.0,0.00033424,30]
[339007465,1727117474617,-500.0,0.00033424,30]
[339007466,1727117474627,-500.0,0.00033424,30]
[339007467,1727117474641,-843.98,0.00033424,30]
[339007468,1727117474650,-500.0,0.00033424,30]
[339007469,1727117474659,-500.0,0.00033424,30]
[339007470,1727117474668,-500.0,0.00033424,30]
[339007471,1727117474678,-541.85,0.00033424,30]
[339007472,1727117474687,-500.0,0.00033424,30]
[339007473,1727117474696,-1000.0,0.00033424,120]
[339007474,1727117474705,-500.0,0.00033424,120]
[339007475,1727117474714,-500.0,0.00033424,30]
[339007476,1727117474723,-563.49,0.00033424,30]
[339007477,1727117474733,-500.0,0.00033424,30]
[339007478,1727117474742,-500.0,0.00033424,30]
[339007479,1727117474751,-500.0,0.00033424,30]
[339007480,1727117474760,-531.25,0.00033424,30]
[339007481,1727117474770,-500.0,0.00033424,30]
[339007482,1727117474779,-1578.63,0.00033424,30]
[339007483,1727117474788,-555.25968726,0.00033424,30]
[339007484,1727117474798,-288.77,0.00033424,30]
[339007485,1727117474807,-696.92,0.00033424,30]
[339007486,1727117474816,-500.0,0.00033424,30]
[339007487,1727117474825,-599.72,0.00033424,30]
[339007488,1727117474835,-500.0,0.00033424,30]
[339007489,1727117474844,-500.0,0.00033424,30]
[339007490,1727117474855,-500.0,0.00033424,30]
[339007491,1727117474864,-500.0,0.00033424,30]
[339007492,1727117474874,-500.0,0.00033424,30]
[339007493,1727117474884,-624.33,0.00033424,30]
[339007494,1727117474893,-500.0,0.00033424,30]
[339007495,1727117474902,-642.05916434,0.00033424,30]
[339007496,1727117474912,-500.0,0.00033424,30]
[339007497,1727117474922,-635.37,0.00033424,30]
[339007498,1727117474932,-588.99,0.00033424,30]
[339007499,1727117474941,-2935.07306673,0.00033424,18]
[339007500,1727117474954,-26424.49693327,0.00033424,18]
[339007501,1727117474963,-500.0,0.00033424,7]
[339007502,1727117474973,-604.53,0.00033424,30]
[339007503,1727117474983,-500.0,0.00033424,30]
[339007504,1727117474992,-500.0,0.00033424,30]
[339007505,1727117475002,-500.0,0.00033424,30]
[339007506,1727117475011,-3528.83,0.00033424,21]
[339007507,1727117475021,-500.0,0.00033424,30]
[339007508,1727117475030,-949.71,0.00033424,30]
[339007509,1727117475040,-335.98418338,0.00033424,30]
[339007510,1727117475049,-574.79,0.00033424,30]
[339007511,1727117475058,-500.0,0.00033424,30]
[339007512,1727117475068,-500.0,0.00033424,30]
[339007513,1727117475077,-500.0,0.00033424,30]
[339007514,1727117475087,-500.0,0.00033424,30]
[339007515,1727117475097,-500.0,0.00033424,30]
[339007516,1727117475107,-389.93886392,0.00033424,30]
[339007517,1727117475117,-500.0,0.00033424,30]
[339007518,1727117475127,-645.94,0.00033424,30]
[339007519,1727117475137,-500.0,0.00033424,30]
[339007520,1727117475146,-500.0,0.00033424,30]
[339007521,1727117475156,-500.0,0.00033424,30]
[339007522,1727117475165,-1120.8,0.00033424,30]
[339007523,1727117475175,-500.0,0.00033424,30]
[339007524,1727117475184,-1524.69,0.00033424,7]
[339007525,1727117475194,-500.0,0.00033424,30]
[339007526,1727117475203,-500.0,0.00033424,30]
[339007527,1727117475213,-500.0,0.00033424,30]
[339007528,1727117475222,-500.0,0.00033424,30]
[339007529,1727117475232,-500.0,0.00033424,30]
[339007530,1727117475380,-506.72,0.00033424,30]
[339007531,1727117475390,-500.0,0.00033424,30]
[339007532,1727117475399,-659.92,0.00033424,30]
[339007533,1727117475409,-500.0,0.00033424,30]
[339007534,1727117475418,-500.0,0.00033424,30]
[339007535,1727117475428,-500.0,0.00033424,30]
[339007536,1727117475438,-500.0,0.00033424,30]
[339007537,1727117475448,-666.92,0.00033424,30]
[339007538,1727117475458,-500.0,0.00033424,30]
[339007539,1727117475468,-500.0,0.00033424,30]
[339007540,1727117475478,-500.0,0.00033424,30]
[339007541,1727117475488,-500.0,0.00033424,30]
[339007542,1727117475498,-500.0,0.00033424,30]
[339007543,1727117475507,-500.0,0.00033424,30]
[339007544,1727117475517,-502.27,0.00033424,30]
[339007545,1727117475528,-500.0,0.00033424,30]
[339007546,1727117475537,-500.0,0.00033424,30]
[339007547,1727117475547,-500.0,0.00033424,7]
[339007548,1727117475556,-908.92,0.00033424,30]
[339007549,1727117475566,-1412.92,0.00033424,30]
[339007550,1727117475576,-500.0,0.00033424,30]
[339007551,1727117475586,-619.72,0.00033424,30]
[339007552,1727117475595,-248.1266283,0.00033424,30]
[339007553,1727117475606,-1040.78,0.00033424,30]
[339007554,1727117475615,-500.0,0.00033424,30]
[339007555,1727117475625,-362.64083535,0.00033424,30]
[339007556,1727117475634,-500.0,0.00033424,30]
[339007557,1727117475644,-500.0,0.00033424,30]
[339007558,1727117475653,-500.0,0.00033424,30]
[339007559,1727117475663,-500.0,0.00033424,30]
[339007560,1727117475672,-500.0,0.00033424,30]
[339007561,1727117475682,-521.16,0.00033424,30]
[339007562,1727117475692,-500.0,0.00033424,30]
[339007563,1727117475701,-500.0,0.00033424,30]
[339007564,1727117475711,-500.0,0.00033424,30]
[339007565,1727117475720,-562.73,0.00033424,30]
[339007566,1727117475730,-513.63,0.00033424,30]
[339007567,1727117475739,-500.0,0.00033424,30]
[339007568,1727117475749,-536.29,0.00033424,30]
[339007569,1727117475758,-500.0,0.00033424,30]
[339007570,1727117475768,-506.20335069,0.00033424,30]
[339007571,1727117475778,-664.33,0.00033424,30]
[339007572,1727117475787,-500.0,0.00033424,30]
[339007573,1727117475796,-500.0,0.00033424,30]
[339007574,1727117475806,-500.0,0.00033424,30]
[339007575,1727117475816,-500.0,0.00033424,30]
[339007576,1727117475825,-500.0,0.00033424,30]
[339007577,1727117475835,-500.0,0.00033424,30]
[339007578,1727117475844,-500.0,0.00033424,30]
[339007579,1727117475857,-500.0,0.00033424,30]
[339007580,1727117475868,-500.0,0.00033424,30]
[339007581,1727117475878,-500.0,0.00033424,30]
[339007582,1727117475888,-500.0,0.00033424,30]
[339007583,1727117475897,-1314.92,0.00033424,30]
[339007584,1727117475907,-500.0,0.00033424,30]
[339007585,1727117475917,-896.51,0.00033424,30]
[339007586,1727117475926,-811.58,0.00033424,30]
[339007587,1727117475936,-500.0,0.00033424,30]
[339007588,1727117475946,-500.0,0.00033424,30]
[339007589,1727117475956,-500.0,0.00033424,30]
[339007590,1727117475966,-500.0,0.00033424,30]
[339007591,1727117475976,-500.0,0.00033424,30]
[339007592,1727117475987,-500.0,0.00033424,30]
[339007593,1727117475997,-500.0,0.00033424,30]
[339007594,1727117476007,-3000.0,0.0003343,15]
[339007595,1727117476017,-3000.0,0.0003344,16]
[339007596,1727117476027,-3000.0,0.0003345,16]
[339007597,1727117476037,-3000.0,0.0003346,16]
[339007598,1727117476046,-1125.26243069,0.00033461,2]
[339007599,1727117476056,-3000.0,0.0003347,16]
[339007600,1727117476066,-3000.0,0.0003348,16]
[339007601,1727117476075,-3000.0,0.0003349,16]
[339007602,1727117476085,-3000.0,0.000335,16]
[339007603,1727117476094,-290.08,0.000335,14]
[339007604,1727117476104,-3000.0,0.0003351,16]
[339007605,1727117476114,-3000.0,0.0003352,16]
[339007606,1727117476124,-3000.0,0.0003353,16]
[339007607,1727117476138,-202.38003872,0.0003354,16]
[339007608,1727117476151,-2001.35592145,0.0003354,16]
[339007609,1727117476542,-500.0,0.00029237,2]
[339007610,1727117476552,-500.0,0.00029237,2]
[339007611,1727117476562,-500.0,0.00029237,2]
[339007612,1727117476572,-500.0,0.00029237,2]
[339007613,1727117476582,-500.0,0.00029237,2]
[339007614,1727117476592,-293.59345962,0.00029237,2]
[339007615,1727117476601,-500.0,0.00029237,2]
[339007616,1727117476611,-500.0,0.00029237,2]
[339007617,1727117476620,-500.0,0.00029237,2]
[339007618,1727117476629,-500.0,0.00029237,2]
[339007619,1727117476639,-500.0,0.00029237,2]
[339007620,1727117476648,-500.0,0.00029237,2]
[339007621,1727117476657,-500.0,0.00029237,2]
[339007622,1727117476667,-240.87,0.00032866,3]
[339007623,1727117476676,-500.0,0.00032876,30]
[339007624,1727117476686,-500.0,0.00033013,30]
[339007625,1727117476696,-796.26403983,0.0003354,16]
[339007626,1727117476705,-3000.0,0.0003355,16]
[339007627,1727117476715,-111.5574926,0.0003356,16]
[339007628,1727117476728,-2888.4425074,0.0003356,16]
[339007629,1727117476737,-500.0,0.00033561,14]
[339007630,1727117476747,-500.0,0.00033561,14]
[339007631,1727117476756,-500.0,0.00033561,14]
[339007632,1727117476765,-500.0,0.00033561,14]
[339007633,1727117476774,-500.0,0.00033561,14]
[339007634,1727117476783,-500.0,0.00033561,14]
[339007635,1727117476793,-500.0,0.00033561,14]
[339007636,1727117476802,-500.0,0.00033561,14]
[339007637,1727117476812,-622.79881189,0.00033561,14]
[339007638,1727117476821,-500.0,0.00033561,30]
[339007639,1727117476831,-500.0,0.00033561,30]
[339007640,1727117476840,-500.0,0.00033561,30]
[339007641,1727117476853,-497.11498287,0.00033561,30]
[339007642,1727117476862,-500.0,0.00033561,30]
[339007643,1727117476871,-500.0,0.00033561,30]
[339007644,1727117476881,-500.0,0.00033561,30]
[339007645,1727117476890,-500.0,0.00033561,30]
[339007646,1727117476899,-500.0,0.00033561,30]
[339007647,1727117476909,-449.74294784,0.00033561,30]
[339007648,1727117477163,-88.73236718,0.00029273,5]
[339007649,1727117477347,-411.26763282,0.00029273,5]
[339007650,1727117477367,-150.01,0.00032875,2]
[339007651,1727117477377,-5572.23476114,0.00032875,2]
[339007652,1727117477387,-50.25705216,0.00033561,30]
[339007653,1727117477397,-500.0,0.00033561,30]
[339007654,1727117477407,-316.23055388,0.00033561,7]
[339007656,1727117823561,3000.0,0.00024793,2]
[339007657,1727117850435,462.23785,0.00024805,2]
[339007659,1727117901854,24900.0,0.00024787,2]
[339007664,1727117935842,212.765547,0.00024778,2]
[339007666,1727117968440,250.0,0.00024801,2]
[339007669,1727118003014,189.650857,0.00024532,2]
[339007670,1727118100093,150.0,0.000245,2]
[339007671,1727118111377,166.666666,0.00024351,2]
[339007673,1727118331158,-233.74115489,0.00025332,2]
[339007674,1727118385095,484.305541,0.00024665,2]
[339007676,1727118435415,-250.0,0.00025068,2]
[339007677,1727118435441,-16.2320183,0.00025136,2]
[339007678,1727118438105,-233.7679817,0.00025136,2]
[339007679,1727118438128,-250.0,0.00025205,2]
[339007680,1727118438150,-250.0,0.00025274,2]
[339007681,1727118438173,-250.0,0.00025343,2]
[339007682,1727118438193,-484.305541,0.0002535,2]
[339007683,1727118438216,-250.0,0.00025411,2]
[339007684,1727118438237,-250.0,0.0002548,2]
[339007685,1727118438260,-150.0,0.000255,2]
[339007686,1727118438285,-250.0,0.00025549,2]
[339007687,1727118438307,-250.0,0.00025618,2]
[339007688,1727118438329,-250.0,0.00025686,2]
[339007689,1727118438351,-250.0,0.00025755,2]
[339007690,1727118438372,-250.0,0.00025824,2]
[339007691,1727118438394,-901.1860595,0.00025889,2]
[339007692,1727118442116,-1329.57866296,0.00025889,2]
[339007693,1727118442138,-128.46774901,0.0002589,2]
[339007694,1727118453235,-449.05949198,0.0002589,2]
[339007695,1727118453261,-250.0,0.00025893,2]
[339007696,1727118453286,-250.0,0.00025961,2]
[339007697,1727118453310,-500.0,0.00025973,2]
[339007698,1727118453334,-500.0,0.00025973,2]
[339007699,1727118453358,-10.95193369,0.00025977,2]
[339007700,1727118490058,212.765547,0.00024982,2]
[339007701,1727118533185,250.0,0.00024979,2]
[339007702,1727118546167,-209.25,0.0002597,3]
[339007703,1727118546187,-174.37,0.0002597,3]
[339007704,1727118546208,-871.89,0.0002597,3]
[339007705,1727118546228,-300.0,0.00025978,2]
[339007706,1727118546250,-300.0,0.00025978,2]
[339007707,1727118546271,-500.0,0.00025979,2]
[339007708,1727118546295,-500.0,0.00025979,2]
[339007709,1727118546316,-192.55971903,0.00025979,2]
[339007710,1727118546336,-190.67161466,0.00025979,2]
[339007711,1727118546360,-500.0,0.00025979,2]
[339007712,1727118546381,-281.32756236,0.00025979,2]
[339007713,1727118546403,-500.0,0.00025979,2]
[339007714,1727118546425,-500.0,0.00025979,2]
[339007715,1727118546447,-500.0,0.00025979,2]
[339007716,1727118546470,-500.0,0.00025979,2]
[339007717,1727118546493,-500.0,0.00025979,2]
[339007718,1727118546515,-500.0,0.00025979,2]
[339007719,1727118546537,-500.0,0.00025979,2]
[339007720,1727118546559,-500.0,0.00025979,2]
[339007721,1727118546581,-500.0,0.00025979,2]
[339007722,1727118546612,-500.0,0.00025979,2]
[339007723,1727118546634,-500.0,0.00025979,2]
[339007724,1727118546655,-500.0,0.00025979,2]
[339007725,1727118546677,-500.0,0.00025979,2]
[339007726,1727118546698,-500.0,0.00025979,2]
[339007727,1727118546721,-500.0,0.00025979,2]
[339007728,1727118546743,-500.0,0.00025979,2]
[339007729,1727118546765,-592.78649403,0.00025979,2]
[339007730,1727118546787,-500.0,0.00025979,2]
[339007731,1727118546808,-500.0,0.00025979,2]
[339007732,1727118546831,-500.0,0.00025979,2]
[339007733,1727118546858,-500.0,0.00025979,2]
[339007734,1727118546881,-500.0,0.00025979,2]
[339007735,1727118546902,-500.0,0.00025979,2]
[339007736,1727118546924,-500.0,0.00025979,2]
[339007737,1727118546946,-500.0,0.00025979,2]
[339007738,1727118546968,-500.0,0.00025979,2]
[339007739,1727118546988,-500.0,0.00025979,2]
[339007740,1727118547009,-169.72761119,0.00025979,2]
[339007741,1727118547030,-404.51159853,0.00025979,2]
[339007742,1727118547050,-492.18277896,0.00025979,2]
[339007743,1727118547073,-500.0,0.00025979,2]
[339007744,1727118547098,-463.17833732,0.00025979,2]
[339007745,1727118547118,-500.0,0.00025979,2]
[339007746,1727118547139,-500.0,0.00025979,2]
[339007747,1727118547160,-200.72,0.0002598,3]
[339007748,1727118547181,-602.19,0.0002598,3]
[339007749,1727118547202,-20418.78282893,0.0002598,4]
[339007750,1727118548106,-151612.98885607,0.0002598,4]
[339007751,1727118548128,-9716.07885637,0.0002599,4]
[339007752,1727118561547,171.741517,0.00023762,2]
[339007753,1727118565121,-17967.84278853,0.0002599,4]
[339007754,1727118565148,-21577.27305145,0.0002599,4]
[339007755,1727118565178,-2894.68114283,0.0002599,4]
[339007756,1727118565287,-521.70268887,0.0002599,4]
[339007757,1727118566133,-37843.43215949,0.0002599,4]
[339007758,1727118572089,-24166.83710246,0.0002599,4]
[339007759,1727118572110,-586.66743907,0.00025999,2]
[339007760,1727118572130,-97809.04885847,0.00026,4]
[339007778,1727118638816,-628.145317,0.00025923,2]
[339007779,1727118638871,-1323.77381517,0.00025923,2]
[339007780,1727118638882,-300.0,0.00025999,2]
[339007781,1727118638891,-300.0,0.00025999,2]
[339007782,1727118638901,-7719.86832511,0.00026,4]
[339007783,1727118638940,-12981.80665339,0.00026,4]
[339007784,1727118638949,-577.52724099,0.00026023,2]
[339007785,1727118638969,-250.0,0.0002603,2]
[339007786,1727118638979,-484.305541,0.00026035,2]
[339007787,1727118638988,-250.0,0.00026099,2]
[339007788,1727118638997,-577.52724099,0.00026156,2]
[339007789,1727118639007,-250.0,0.00026167,2]
[339007790,1727118639016,-250.0,0.00026236,2]
[339007791,1727118639026,-577.52724099,0.00026288,2]
[339007792,1727118639035,-250.0,0.00026305,2]
[339007793,1727118639044,-250.0,0.00026374,2]
[339007794,1727118639054,-500.0,0.0002642,2]
[339007795,1727118639065,-409.2786494,0.0002642,2]
[339007796,1727118639074,-500.0,0.0002642,2]
[339007797,1727118639083,-577.52724099,0.00026421,2]
[339007798,1727118639093,-57343.923895,0.0002648,4]
[339007799,1727118639102,-150.434486,0.000265,2]
[339007800,1727118639111,-500.24901749,0.000265,2]
[339007801,1727118639120,-1020.55397532,0.00026521,2]
[339007802,1727118639129,-157.46,0.000266,7]
[339007803,1727118639138,-284.839673,0.00027397,2]
[339007804,1727118639148,-393.26,0.00028064,18]
[339007805,1727118639159,-420.0,0.00028137,2]
[339007806,1727118639168,-1951.91913215,0.00028205,2]
[339007807,1727118639177,-420.0,0.00028599,2]
[339007808,1727118639186,-500.0,0.00029247,2]
[339007809,1727118639195,-157.46,0.000294,7]
[339007810,1727118639205,-151.0,0.0003,120]
[339007811,1727118639214,-151.0,0.0003,120]
[339007812,1727118639223,-1210.30575349,0.0003,3]
[339007813,1727118639232,-169.0,0.0003045,2]
[339007814,1727118639242,-500.0,0.00030487,2]
[339007815,1727118639251,-283.15811897,0.00030487,2]
[339007816,1727118639260,-344.52794528,0.00030487,2]
[339007817,1727118639269,-500.0,0.00030487,2]
[339007818,1727118639279,-500.0,0.00030487,2]
[339007819,1727118639288,-224.22483613,0.00030487,2]
[339007820,1727118639297,-1951.91913215,0.00030488,2]
[339007821,1727118639306,-369.0,0.00031459,2]
[339007822,1727118639315,-401.44,0.00031496,3]
[339007823,1727118639325,-500.0,0.00031506,30]
[339007824,1727118639334,-500.0,0.00031506,30]
[339007825,1727118639343,-500.0,0.00031506,30]
[339007826,1727118639352,-500.0,0.00031506,30]
[339007827,1727118639361,-500.0,0.00031506,30]
[339007828,1727118639370,-500.0,0.00031506,30]
[339007829,1727118639380,-500.0,0.00031506,30]
[339007830,1727118639389,-210.0217092,0.00031506,30]
[339007831,1727118639398,-411.8657486,0.00031928,2]
[339007832,1727118639409,-411.8657486,0.00031938,2]
[339007833,1727118639418,-411.8657486,0.00031938,2]
[339007834,1727118639427,-411.8657486,0.00031941,2]
[339007835,1727118639437,-600.0,0.00031961,10]
[339007836,1727118639446,-991.50077452,0.0003211,2]
[339007837,1727118639455,-655.0,0.00032186,2]
[339007838,1727118639464,-655.0,0.00032186,2]
[339007839,1727118639473,-655.0,0.00032186,2]
[339007840,1727118639483,-655.0,0.00032186,2]
[339007841,1727118639492,-655.0,0.00032186,2]
[339007842,1727118639501,-655.0,0.00032186,2]
[339007843,1727118639511,-655.0,0.00032186,2]
[339007844,1727118639520,-655.0,0.00032186,2]
[339007845,1727118639530,-655.0,0.00032186,2]
[339007846,1727118639539,-655.0,0.00032186,2]
[339007847,1727118639548,-655.0,0.00032186,2]
[339007848,1727118639557,-655.0,0.00032186,2]
[339007849,1727118639571,-655.0,0.00032186,2]
[339007850,1727118639580,-655.0,0.00032186,2]
[339007851,1727118639590,-247.0,0.00032187,2]
[339007852,1727118639599,-247.0,0.00032187,2]
[339007853,1727118639609,-247.0,0.00032187,2]
[339007854,1727118639619,-247.0,0.00032187,2]
[339007855,1727118639629,-247.0,0.00032187,2]
[339007856,1727118639641,-247.0,0.00032187,2]
[339007857,1727118639650,-247.0,0.00032187,2]
[339007858,1727118639661,-247.0,0.00032187,2]
[339007859,1727118639670,-247.0,0.00032187,2]
[339007860,1727118639679,-247.0,0.00032187,2]
[339007861,1727118639690,-247.0,0.00032187,2]
[339007862,1727118639700,-247.0,0.00032187,2]
[339007863,1727118639709,-247.0,0.00032187,2]
[339007864,1727118639719,-247.0,0.00032187,2]
[339007865,1727118639729,-655.0,0.00032188,2]
[339007866,1727118639738,-655.0,0.00032188,2]
[339007867,1727118639748,-655.0,0.00032188,2]
[339007868,1727118639757,-655.0,0.00032188,2]
[339007869,1727118639766,-655.0,0.00032188,2]
[339007870,1727118639776,-655.0,0.00032188,2]
[339007871,1727118639786,-655.0,0.00032188,2]
[339007872,1727118639795,-655.0,0.00032188,2]
[339007873,1727118639804,-655.0,0.00032188,2]
[339007874,1727118639814,-655.0,0.00032188,2]
[339007875,1727118639823,-655.0,0.00032188,2]
[339007876,1727118639832,-655.0,0.00032188,2]